[Event "Bangabandhu Premier Div League 2022"]
[Site "Dhaka"]
[Date "2022.12.09"]
[Round "10.2"]
[White "Mendonca, Leon Luke"]
[Black "Aaryan Varshney"]
[Result "1-0"]
[ECO "A06"]
[WhiteElo "2565"]
[BlackElo "2312"]
[Annotator "TA"]
[PlyCount "89"]
[EventDate "2022.12.01"]
[EventCountry "BAN"]
[SourceTitle "playchess.com"]
[Source "ChessBase"]
[SourceQuality "1"]
[TimeControl "40/5400+30:1800+30"]

{[%evp 11,88,13,22,19,17,25,29,15,34,5,44,44,30,38,37,32,43,38,46,45,53,56,53,19,23,20,29,0,25,27,35,25,23,0,0,0,-7,-7,-12,-8,0,-16,0,0,-6,-61,0,-228,-228,-227,-227,-225,-225,-220,-219,-327,-342,-647,-10,-27,0,-60,260,-91,524,495,1466,1462,29996,29995,29995,29996,29996,29997,29997,29998,29998,29999,29999]} 1. Nf3 {[%emt 1:31:00]} d5 {[%emt 0:00:21]} 2. e3 {[%emt 0:00:00]} c5 {[%emt 0:00:12]} 3. b3 {[%emt 0:00:00]} Nf6 {[%emt 0:00:14]} 4. Bb2 {[%emt 0:00:00]} Nc6 {[%emt 0:00:07]} 5. Bb5 {[%emt 0:00:00]} Bd7 {[%emt 1:32:06]} 6. O-O {[%emt 0:00:00]} e6 {[%emt 0:00:00]} 7. d4 {[%emt 0:00:00] A06: Réti Opening: 1 Nf3 d5.} Bd6 {[%emt 0:00:00]} 8. Nbd2 {[%emt 0:03:30]} O-O {[%emt 0:00:00][%cal Oc6d4]} 9. Bd3 {[%emt 0:00:30] [#] White has an edge.} Nb4 $146 {[%emt 0:00:00]} ({Predecessor:} 9... Qc7 10. c4 e5 11. cxd5 Nxd5 12. dxc5 Be7 13. Rc1 Rad8 14. a3 Bg4 15. h3 Bh5 {1-0 (35) Lubbe,N (2433)-Sistig,M (1844) Reinstorf 2022}) 10. Be2 {[%emt 0:00:00]} Rc8 {[%emt 0:00:00]} 11. a3 {[%emt 0:00:00]} Nc6 {[%emt 0:00:00]} 12. dxc5 {[%emt 0:00:00]} Bxc5 {[%emt 0:00:00]} 13. b4 {[%emt 0:00:00]} Bd6 {[%emt 0:04:00]} 14. c4 {[%emt 0:00:00]} Qe7 {[%emt 0:00:30]} 15. Qb3 {[%emt 0:03:00]} dxc4 {[%emt 0:00:00]} 16. Nxc4 {[%emt 0:00:00]} Bc7 $1 {[%emt 0:01:00]} 17. Rac1 {[%emt 0:01:00]} (17. b5 $5 {[%cal Rb5c6]} Na5 18. Nxa5 Bxa5 19. Ne5 $14) 17... a6 {[%emt 0:00:30]} 18. Ncd2 {[%emt 0:00:30][%cal Bc4d2,Bd2e4,Be4c5][%mdl 32]} Rfd8 {[%emt 0:00:00]} 19. Bxf6 {[%emt 0:00:30]} Qxf6 {[%emt 0:00:00]} 20. Ne4 {[%emt 0:00:30]} Qe7 {[%emt 0:00:00]} 21. Nc5 {[%emt 0:00:00] Pair of Knights!} Rb8 {[%emt 0:02:00]} 22. Qb1 {[%emt 0:01:00]} (22. Nxd7 {simplifies} Rxd7 23. g3 Na7 24. Bd3) 22... Be8 {[%emt 0:00:00]} 23. Bd3 {[%emt 0:00:00]} h6 {[%emt 0:00:00]} 24. Be4 {[%emt 0:01:00][%cal Oc5a6]} Rdc8 {[%emt 0:00:00]} 25. Rfd1 {[%emt 0:00:30]} Bd6 {[%emt 0:00:00]} (25... f5 26. Bxc6 Bxc6 27. Nd4 $16) 26. Nd2 {[%emt 0:00:30]} a5 {[%emt 0:02:30]} (26... Qh4 27. g3 Qe7 28. Bg2 $14) (26... f5 {simplifies} 27. Bd3 Ne5 28. Nc4 Nxc4 29. Bxc4 Bxc5 30. bxc5 Bf7) 27. Nc4 {[%emt 0:00:00][%csl LRa5,LRd6]} Bc7 {[%emt 0:00:30]} (27... Bxc5 28. bxc5 Qc7 29. g3 $16 (29. Nd6 Rd8 $16)) 28. b5 {[%emt 0:01:00]} (28. Qb3 $11) 28... Na7 {[%emt 0:00:00]} (28... Qxc5 $15 29. Nd6 Qxd6 30. Rxd6 Bxd6 31. bxc6 Bxc6 32. Bxc6 Bxa3) 29. Bxb7 $2 {[%emt 0:00:30]} (29. Nxe6 $11 Nxb5 30. Nxc7 Rxc7 31. Bh7+ (31. Nxa5 $2 Nc3 $19) 31... Kh8 32. Bd3 (32. Nxa5 $2 Nc3 $19)) 29... Bxh2+ $19 {[%emt 0:00:00]} (29... Qxc5 30. Bxc8 Rxb5 31. Qc2 (31. Nb2 Qe5 $17) 31... Nxc8 32. Nd2 Qxc2 33. Rxc2 $15) 30. Kxh2 {[%emt 0:00:30]} Rxc5 {[%emt 0:01:30]} 31. Nd6 {[%emt 0:00:00]} Rh5+ {[%emt 0:00:00]} 32. Kg1 {[%emt 0:00:00] And now Bf3 would win.} Rxb7 {[%emt 0:01:00]} (32... Qh4 33. f4 Qh2+ 34. Kf2 Qh4+ 35. Kg1 Bxb5 36. Bf3 Qh2+ 37. Kf2 $11) 33. b6 {[%emt 0:01:30]} (33. Qe4 $142 Rbxb5 34. Nxb5 Rxb5 35. Qa8) 33... Qh4 $1 {[%emt 0:00:00][%csl Gh5][%cal Rh4h1]} 34. f4 $2 {[%emt 0:00:00] [#]} (34. Kf1 Bb5+ 35. Nxb5 Rxb6 36. a4) 34... Qh2+ $2 {[%emt 0:00:27]} (34... Qg3 $1 $19 35. Nc4 (35. Ne4 Qxe3+) 35... Qh2+ 36. Kf1 Qh1+ 37. Kf2 Qh4+ 38. Ke2 Qg4+ 39. Kf2 Rh2) 35. Kf2 $11 {[%emt 0:00:06] aiming for Rh1. Active counter play!} Qh4+ {[%emt 0:00:13]} 36. Kf3 {[%emt 0:00:34] [#]} (36. Kg1 $1 $11 Qg3 37. Rc2) 36... g5 $2 {[%emt 0:00:48][%mdl 8192]} 37. Nxe8 $2 {[%emt 0:00:42] Really sharp!} (37. Nxb7 g4+ 38. Ke4 (38. Ke2 $2 Bb5+ 39. Kd2 Qf2+ 40. Kc3 Qxe3+ 41. Kb2 Bc4 $19) 38... Bc6+ 39. Kd3 Rd5+ 40. Kc4 Nc8 $17) (37. bxa7 $18 gxf4 38. exf4 (38. a8=R $2 {is a self mate.} Qg3+ 39. Ke2 Qxe3+ 40. Kf1 Rh1#) 38... Rxb1 39. a8=Q Rb3+ 40. Ke4 f5+ 41. Ke5 Re3+ 42. Kd4 Qxf4+ 43. Kc5) 37... g4+ $2 {[%emt 0:00:28][%mdl 8192]} (37... gxf4 $17 {and life is bright. ( -> ...Qg3+)} 38. exf4 Rb5) 38. Ke2 $18 {[%emt 0:00:09]} Nb5 {[%emt 0:01:04]} (38... Rb5 $142 39. Qa1 (39. bxa7 Rxb1 40. a8=Q R7b2+ 41. Kd3 Rb8 $17) 39... e5) 39. Rc8 {[%emt 0:00:44] Nf6+ would kill now.} Rxb6 {[%emt 0:00:00]} 40. Nf6+ {[%emt 0:00:07][%mdl 64] Discovered Attack (Double check), Double Attack. White mates.} Kg7 {[%emt 0:00:00]} 41. Qh7+ {[%emt 0:30:35]} Kxf6 {[%emt 0:30:05]} 42. Qh8+ {[%emt 0:00:05]} Kf5 {[%emt 0:00:10]} 43. Qe5+ {[%emt 0:00:17]} Kg6 {[%emt 0:00:02]} 44. Rg8+ {[%emt 0:02:11]} Kh7 {[%emt 0:02:43]} 45. Qh8# {[%emt 0:00:00] Weighted Error Value: White=0.41/Black=0.60} 1-0

[Event "Bangabandhu Premier Div League 2022"]
[Site "Dhaka"]
[Date "2022.12.09"]
[Round "10.2"]
[White "Aradhya, Garg"]
[Black "Mohammad Fahad, Rahman"]
[Result "0-1"]
[ECO "D31"]
[WhiteElo "2289"]
[BlackElo "2380"]
[Annotator "TA"]
[PlyCount "82"]
[EventDate "2022.11.30"]
[EventType "team-tourn"]
[EventCountry "BAN"]
[SourceTitle "playchess.com"]
[Source "ChessBase"]
[SourceQuality "1"]
[TimeControl "40/5400+30:1800+30"]

{[%evp 9,81,15,31,-113,-112,-143,-68,-84,-84,-79,-66,-83,-72,-80,-61,-187,-147,-188,-170,-158,-84,-234,-231,-229,-224,-224,-153,-315,-322,-311,-294,-320,-318,-312,-299,-286,-107,-112,-59,-64,-45,-51,-82,-40,-59,-60,-54,-97,-110,-148,-166,-156,-150,-230,-208,-253,-229,-558,-536,-852,-851,-842,-838,-946,-818,-29993,-29984,-29990,-29991,-29995,-29996,-29997,-29998,-29999]} 1. d4 {[%emt 0:00:03]} d5 {[%emt 0:00:21]} 2. c4 {[%emt 0:00:06]} e6 {[%emt 0:00:12]} 3. Nc3 {[%emt 0:05:37]} a6 {[%emt 0:00:14]} 4. c5 {[%emt 0:06:24]} Nc6 {[%emt 0:03:41]} 5. Nf3 {[%emt 0:01:40]} e5 {[%emt 0:00:52] [#]} (5... Be7 {simplifies} 6. Bf4 Nf6 7. e3 O-O) 6. e4 $146 {D31: Queen's Gambit Declined: Semi-Slav without ...Nf6 (+ Marshall Gambit and Noteboom) and Exchange Variation lines without ...Nf6.} (6. Nxe5 $14 {stays ahead.} Nxe5 7. dxe5) ({Predecessor:} 6. e3 e4 7. Nd2 h5 8. b4 h4 9. h3 Nh6 10. Rb1 Ne7 11. a4 g5 12. b5 axb5 13. axb5 {½-½ (53) Korobov,A (2690)-Warmerdam,M (2595) Chess.com INT 2021}) 6... dxe4 $17 {[%emt 0:19:12]} 7. Ng5 Qxd4 {[%emt 0:27:01]} (7... Nxd4 8. Bc4 Nh6 9. O-O $15) ({Black should try} 7... h6 $17 8. d5 hxg5 9. dxc6 Qxd1+ 10. Nxd1 Bxc5 11. cxb7 Bxb7 12. Bxg5 f6) 8. Qb3 $1 $15 {[%emt 0:18:16] Black is slightly better.} Nh6 {[%emt 0:01:47][%cal Bg8h6,Bh6f5,Bf5d4,Bd4c2][%mdl 32]} (8... Qxc5 9. Qxf7+ (9. Ncxe4 $2 Qb4+ 10. Bd2 Qxb3 $19) 9... Kd8 10. Ncxe4 $16 (10. Ngxe4 Qe7 $14)) 9. Ngxe4 {[%emt 0:14:37] And now Bxh6 would win.} Nf5 {[%emt 0:11:48]} (9... Bxc5 $2 10. Be3 Qb4 11. Bxc5 Qxb3 12. axb3 $18) 10. Ng5 {[%emt 0:11:45]} Qd7 {[%emt 0:01:13]} (10... Bxc5 11. Qxf7+ Kd8 12. Nge4 $11) 11. Bc4 {[%emt 0:02:30][%cal Rc4f7]} Nd8 {[%emt 0:29:39]} (11... Bxc5 12. Bxf7+ Ke7 13. Be6 $16) 12. Nce4 {[%emt 0:08:58]} (12. Be3 $15 Nxe3 13. fxe3 Bxc5 14. Rd1) 12... Nd4 $19 {[%emt 0:00:00]} 13. Qd3 {[%emt 0:06:57]} f5 $36 {[%emt 0:00:00][%mdl 2048] Black is on the roll.} 14. Nc3 {[%emt 0:03:41]} h6 {[%emt 0:00:00] Prevents b4.} (14... Bxc5 $142 {Threatens to win with ...h6.} 15. Qd1 b5) 15. Qh3 {[%emt 0:03:17]} (15. Nf3 $17 {was the only defense.} Bxc5 16. Nxe5) 15... Nc2+ {[%emt 0:00:00]} 16. Ke2 {[%emt 0:00:10]} Nd4+ {[%emt 0:00:00]} (16... Nxa1 $2 17. Qh5+ Ke7 18. Nd5+ $18) 17. Kf1 {[%emt 0:00:18]} g6 {[%emt 0:00:00] Against Qh5. aiming for ...Qg7.} (17... Bxc5 $2 18. Qh5+ Kf8 19. Nf3 Nxf3 20. Qxf3) 18. Bf4 $2 {[%emt 0:04:10] [#]} (18. Nf3 $17 N8c6 19. Qg3) 18... Bg7 $1 {[%emt 0:00:00][%cal Oh6g5]} ({Less strong is} 18... exf4 19. Re1+ $16) ({Don't do} 18... Bxc5 19. Bxe5 Be7 20. Re1 $18) ({Not} 18... hxg5 19. Qxh8 gxf4 20. Nd5 $14) 19. Bxe5 {[%emt 0:00:42][%cal Oh3e3] Strongly threatening Qe3!} Bxe5 {[%emt 0:00:00]} 20. Re1 {[%emt 0:02:34]} Qg7 {[%emt 0:00:00]} 21. Nf3 {[%emt 0:03:28]} Nxf3 {[%emt 0:00:00]} 22. Qxf3 {[%emt 0:00:15]} Kf8 $2 {[%emt 0:00:00]} (22... Nc6 $19 {and Black stays clearly on top.} 23. Bd5 Ne7 24. Bxb7 Bxb7 25. Qxb7 O-O) 23. Qe3 $17 {[%emt 0:01:22]} Be6 {[%emt 0:00:00]} ({Black should play} 23... Nc6 $17 24. f4 {[#]} Be6 $1 25. Bxe6 Bd4) 24. Bxe6 $15 {[%emt 0:00:06]} Nxe6 {[%emt 0:00:00]} 25. Qxe5 {[%emt 0:00:02]} Qxe5 {[%emt 0:00:00]} 26. Rxe5 {[%emt 0:00:01]} Kf7 {[%emt 0:00:03]} 27. h4 {[%emt 0:01:18]} Kf6 {[%emt 0:00:48] Against h5} 28. Rd5 {[%emt 0:01:52]} Rad8 {[%emt 0:00:45]} 29. h5 {[%emt 0:01:42]} g5 {[%emt 0:00:25]} 30. c6 {[%emt 0:01:07]} b5 {[%emt 0:01:24] Hoping for ...b4.} 31. g4 {[%emt 0:01:48]} (31. a3 $17) 31... fxg4 $19 {[%emt 0:01:26]} 32. Ne4+ {[%emt 0:00:01]} Kg7 {[%emt 0:00:32]} 33. Rf5 {[%emt 0:01:29]} (33. Rxd8 Rxd8 34. Kg2) 33... Rhe8 {[%emt 0:00:57]} 34. Ng3 {[%emt 0:00:40]} Nf4 {[%emt 0:00:50][%cal Rd8d1]} 35. Kg1 {[%emt 0:00:05]} Rd2 {[%emt 0:00:21] ( -> ...Re1+)} 36. Nf1 {[%emt 0:00:51]} Re1 {[%emt 0:00:21]} 37. Re5 {[%emt 0:00:01]} Rc1 {[%emt 0:01:07] Black mates.} 38. Re7+ {[%emt 0:00:06]} Kf6 {[%emt 0:00:21]} 39. Rd7 {[%emt 0:00:36]} Rxb2 {[%emt 0:00:06]} 40. Rxc7 {[%emt 0:00:15] [#]} Rxf1+ $1 {[%emt 0:00:06][%mdl 512]} 41. Kxf1 {[%emt 0:30:05]} (41. Kh2 Rbxf2+) 41... Rb1# {[%emt 0:30:04] Weighted Error Value: White=0.56/Black=0.19 (very precise)} 0-1

[Event "Bangabandhu Premier Div League 2022"]
[Site "Dhaka"]
[Date "2022.12.09"]
[Round "10.3"]
[White "Narayanan.S.L"]
[Black "Sankalan Shah"]
[Result "1-0"]
[ECO "D35"]
[WhiteElo "2673"]
[BlackElo "2218"]
[Annotator "TA"]
[PlyCount "85"]
[EventDate "2022.11.30"]
[EventType "team-tourn"]
[EventCountry "BAN"]
[SourceTitle "playchess.com"]
[Source "ChessBase"]
[SourceQuality "1"]
[TimeControl "40/5400+30:1800+30"]

{[%evp 14,85,36,37,64,19,21,20,23,6,90,64,72,79,79,73,72,70,70,71,97,93,85,90,203,127,177,119,161,165,223,170,168,57,181,187,176,183,189,180,169,165,164,147,148,87,109,27,35,27,70,10,141,143,254,249,247,180,395,414,407,355,437,433,420,420,466,444,905,931,1048,996,1003,911]} 1. d4 {[%emt 0:00:07]} Nf6 {[%emt 0:00:09]} 2. c4 {[%emt 0:00:05]} e6 {[%emt 0:00:08]} 3. Nc3 {[%emt 0:00:07]} d5 {[%emt 0:00:11]} 4. cxd5 {[%emt 0:00:06]} exd5 {[%emt 0:00:06]} 5. Bg5 {[%emt 0:00:06]} c6 {[%emt 0:00:09]} 6. e3 {[%emt 0:00:04]} Be7 {[%emt 0:00:11]} 7. Bd3 {[%emt 0:00:12]} Ne4 {[%emt 0:00:56]} 8. Bf4 {[%emt 0:01:16]} Nd6 {[%emt 0:02:30] [#] D35: Queen's Gambit Declined: Exchange Variation.} 9. Nf3 $146 {[%emt 0:00:55] White has more active pieces.} ({Predecessor:} 9. Qc2 Nd7 10. Nf3 Nf6 11. h3 g6 12. a3 Bf5 13. O-O O-O 14. b4 Nfe4 15. Nd2 Nxd2 16. Qxd2 {1-0 (33) Butyrowski,M (1873)-Fudalej,M (2235) Jastrzebia Gora 2019}) 9... Nd7 {[%emt 0:01:16]} 10. h3 {[%emt 0:04:59]} Nf6 {[%emt 0:03:26] The position is equal.} 11. Ne5 {[%emt 0:01:31]} Bf5 {[%emt 0:03:47] [#]} (11... O-O $11) 12. Nxf7 $1 {[%emt 0:00:36]} Kxf7 {[%emt 0:02:23]} 13. Bxd6 {[%emt 0:00:06][%mdl 64] Remove Defender} Bxd6 {[%emt 0:00:21]} 14. Bxf5 {[%emt 0:00:07]} g6 {[%emt 0:02:14]} 15. Bd3 {[%emt 0:00:26]} Qe7 {[%emt 0:03:56]} 16. Qc2 {[%emt 0:05:29]} Rhf8 {[%emt 0:02:42]} 17. O-O-O {[%emt 0:05:40]} Kg7 {[%emt 0:02:15]} 18. Kb1 c5 {[%emt 0:13:28]} (18... Rf7 $16) 19. g4 {[%emt 0:14:56][%cal Bg2g4,Bg4g5][%mdl 32]} c4 {[%emt 0:07:23]} (19... cxd4 $16 20. exd4 Rae8) 20. Be2 {[%emt 0:04:26]} ({White should play} 20. Bf1 $18) 20... Qf7 {[%emt 0:04:28]} 21. g5 {[%emt 0:04:59]} Nd7 {[%emt 0:02:33]} (21... Ne8 $142 22. h4 Bb4) 22. e4 {[%emt 0:01:41]} Nb6 {[%emt 0:04:06]} 23. exd5 {[%emt 0:11:08]} (23. h4 $18) 23... Nxd5 {[%emt 0:11:37]} (23... Rae8 $14) 24. Ne4 $18 {[%emt 0:06:17]} (24. Bxc4 $6 Nxc3+ 25. Qxc3 Qf5+ 26. Ka1 Qxg5 $14) 24... Bb4 {[%emt 0:07:56]} 25. Bxc4 {[%emt 0:01:22]} Rac8 {[%emt 0:01:14][%cal Oc8c4]} 26. Bxd5 {[%emt 0:00:25]} Qxd5 {[%emt 0:00:05]} 27. Qd3 {[%emt 0:00:25]} Rf4 {[%emt 0:02:27]} 28. f3 {[%emt 0:00:09]} Rcf8 {[%emt 0:02:04]} 29. Rhf1 {[%emt 0:00:42]} (29. Rdf1 $142) 29... Be7 {[%emt 0:03:58]} 30. Rc1 {[%emt 0:09:18]} (30. Nc3 $16 Qxg5 31. d5) 30... Bxg5 $11 {[%emt 0:03:19]} 31. Rc7+ {[%emt 0:00:43]} (31. Nxg5 {simplifies} Qxg5 32. Rc7+ R8f7 33. Rfc1) 31... Kh6 {[%emt 0:04:52][%cal Od5e4] White must now prevent ...Qxe4!} 32. a3 {[%emt 0:01:27]} ({Better is} 32. Nxg5 $14 Qxg5 33. Rxb7) 32... b6 {[%emt 0:05:28]} (32... Bd8 $1 $11 {remains equal.} 33. Nc3 Qxd4 34. Qxd4 Rxd4 35. Rxb7 a6) 33. Rxa7 $16 {[%emt 0:05:26][%cal Oh3h4]} ({Don't take} 33. Rg1 $6 Bd8 34. Nc3 (34. Rxa7 Rxf3 35. Nc3 Rxd3 $11) 34... Qf5 35. Qxf5 R8xf5 $14) 33... Qf5 {[%emt 0:00:39] Against h4} (33... R8f7 $16 34. Rxf7 Rxf7) 34. Rc1 $18 {[%emt 0:02:25] And now Rcc7 would win.} Rxf3 {[%emt 0:00:41]} 35. Qxf3 {[%emt 0:00:34] Dancing on a razor blade.} Qxf3 $2 {[%emt 0:00:56] [#]} (35... Bxc1 36. Qxf5 gxf5) 36. Rxh7+ $3 {[%emt 0:00:06][%mdl 576] Deflection, Decoy} Kxh7 {[%emt 0:00:26]} 37. Nxg5+ {[%emt 0:00:06]} Kh6 {[%emt 0:00:02]} 38. Nxf3 {[%emt 0:00:07]} Rxf3 {[%emt 0:00:03]} 39. Rc3 {[%emt 0:00:08]} Rf1+ {[%emt 0:01:19]} 40. Ka2 {[%emt 0:00:26] White is clearly winning.} Rd1 {[%emt 0:00:13]} (40... Kg5 $142 41. d5 Rd1) 41. Rb3 {[%emt 0:30:06]} Rxd4 {[%emt 0:30:22]} 42. Rxb6 {[%emt 0:00:07]} Rd3 {[%emt 0:00:08]} 43. Rb3 {[%emt 0:00:08] Weighted Error Value: White=0.27 (precise) /Black=0.52} 1-0

[Event "Bangabandhu Premier Div League 2022"]
[Site "Dhaka"]
[Date "2022.12.09"]
[Round "10.3"]
[White "Kushagra Mohan"]
[Black "Iniyan, P."]
[Result "0-1"]
[ECO "B23"]
[WhiteElo "2390"]
[BlackElo "2534"]
[Annotator "TA"]
[PlyCount "76"]
[EventDate "2022.12.01"]
[EventCountry "BAN"]
[SourceTitle "playchess.com"]
[Source "ChessBase"]
[SourceQuality "1"]
[TimeControl "40/5400+30:1800+30"]

{[%evp 9,76,19,47,63,52,57,54,56,59,49,43,36,39,-28,-17,-11,-23,-34,-21,-21,-33,-20,-32,-18,-9,-13,-21,-23,0,-73,-58,-148,-150,-129,-120,-263,-252,-237,-110,-112,-61,-97,-51,-347,-354,-346,-349,-339,-318,-469,-458,-414,-231,-221,-225,-541,-228,-232,-204,-204,-196,-210,-183,-737,-736,-1325,-1228,-846,-776]} 1. e4 {[%emt 1:31:00]} c5 {[%emt 0:01:54]} 2. Nc3 {[%emt 0:00:30]} a6 {[%emt 1:29:36]} 3. g3 Nc6 {[%emt 0:00:30]} 4. Nge2 {[%emt 0:01:00]} d6 {[%emt 0:00:00]} 5. Bg2 {[%emt 0:00:30]} h5 {[%emt 0:01:00] [#]} 6. d4 $146 {[%emt 0:00:30] B23: Closed Sicilian: Lines without g3.} ({Predecessor:} 6. h3 g6 7. d3 Bg7 8. Be3 e5 9. O-O Be6 10. Nd5 Bxd5 11. exd5 Nce7 12. c4 Qd7 13. b4 cxb4 14. Qb3 a5 15. a3 h4 16. axb4 {½-½ (16) Le Dinh,T-Dao,T (2564) Can Tho 2001}) 6... cxd4 {[%emt 0:00:00]} 7. Nxd4 {[%emt 0:00:00]} Bd7 {[%emt 0:00:00]} 8. Bg5 {[%emt 0:01:00] White is slightly better.} Nf6 {[%emt 0:01:30]} 9. O-O {[%emt 0:00:00]} e6 {[%emt 0:00:30]} 10. Nxc6 {[%emt 0:01:00]} Bxc6 {[%emt 0:00:30]} 11. e5 {[%emt 0:00:30]} ({White should play} 11. a4 $14) 11... Bxg2 $11 {[%emt 0:00:30]} 12. Kxg2 {[%emt 0:00:00]} dxe5 {[%emt 0:00:00]} 13. Qf3 {[%emt 0:01:00][%cal Oc3e4]} Qc7 {[%emt 0:00:00]} 14. Bxf6 {[%emt 0:00:00]} gxf6 {[%emt 0:00:00]} 15. Qxf6 Rh6 {[%emt 0:02:00]} 16. Qg5 {[%emt 0:00:00]} f6 {[%emt 0:00:00][%cal Bf7f6,Bf6f5,Bf5g4,Bg4h3][%mdl 32]} 17. Qe3 (17. Qg8 {is more complex.} Qc6+ 18. Kg1 f5 19. Rad1) 17... h4 {[%emt 0:01:00]} 18. g4 {[%emt 0:00:00]} Rg6 19. h3 {[%emt 0:03:00]} (19. Kh3 $1 $11 {keeps the balance.}) 19... f5 {[%emt 0:01:00]} 20. f3 {[%emt 0:00:00]} (20. Rad1 $1 $15) 20... e4 $17 {[%emt 0:00:30]} 21. fxe4 {[%emt 0:00:00]} fxg4 {[%emt 0:00:30] Black is more active.} 22. e5 {[%emt 0:01:30]} (22. Ne2 $17 {is a better defense.}) 22... gxh3+ $19 {[%emt 0:00:00]} 23. Kh1 {[%emt 0:00:30]} Bc5 {[%emt 0:01:00]} (23... O-O-O $19 24. Rae1 Bg7) 24. Qe4 $17 {[%emt 0:00:00] [#]} Qg7 {[%emt 0:00:30]} ({Better is} 24... Rg5 $1 $17 {And now ...0-0-0 would win.} 25. Qa4+ Qc6+ 26. Qxc6+ bxc6) 25. Rad1 {[%emt 0:01:00][%cal Oc3b5]} Rd8 {[%emt 0:00:30]} (25... Rg5 $17 26. Qf3 Rxe5 27. Qxh3 Rd8) 26. Ne2 $2 {[%emt 0:00:30][%mdl 8192]} ({Only move:} 26. Qa4+ $15 b5 27. Qxa6 Rxd1 28. Qxb5+ Rd7 29. Qxc5) 26... Rxd1 $19 {[%emt 0:00:00] The board is on fire.} 27. Rxd1 {[%emt 0:00:30]} Rg4 {[%emt 0:01:00]} (27... Rg2 28. Qa4+ b5 29. Qe4 $11) 28. Qf3 {[%emt 0:00:30]} h2 {[%emt 0:00:00] [#] Strongly threatening ...Rg1+.} 29. Kxh2 {[%emt 0:00:30]} (29. Rf1 {was the only defense.}) 29... Qxe5+ {[%emt 0:00:00]} 30. Kh1 {[%emt 0:00:30]} Rg7 {[%emt 0:01:30]} (30... Rg5 $142 31. Qxb7 Bd6 32. Qa8+ Ke7 33. Qb7+ Bc7 34. Qb4+ Ke8 35. Qa4+ Kf8 36. Rf1+ Rf5 37. Rxf5+ exf5 38. Qa3+ Ke8 39. Qa4+ Kf8 40. Qxh4 Qd5+ 41. Kg1 Qd1+ 42. Kg2 (42. Kf2 Bb6+ 43. Kg3 Qe1+ 44. Kh3 Qf1+ 45. Kg3 Bf2+ 46. Kf4 Bxh4+ 47. Ke3 Bg5+ 48. Kd3 Qf3+ 49. Kd4 Qxe2 50. c4 Be3+ 51. Kc3 Bd2+ 52. Kc2 Be1+ 53. Kb3 Qd3+ 54. Ka4 Qxc4+ 55. Ka3 Qb4#) 42... Qxe2+ 43. Qf2 Qg4+ 44. Kf1 Qd1+ 45. Kg2 Qg4+ 46. Kf1 Bd6) 31. Nf4 {[%emt 0:00:00]} Rf7 (31... Qxb2 $2 32. Qh5+ (32. Nxe6 Rg1+ 33. Rxg1 Bxg1 $16) 32... Rf7 33. Qxc5 (33. Qxh4 $2 Be7 $19) 33... Rxf4 34. Qc8+ Kf7 35. Qc7+ Kg6 36. Qxf4 $18) 32. Qd3 $2 {[%emt 0:01:00]} (32. Nd3 {is more resistant.} Rxf3 33. Nxe5) 32... Bb6 {[%emt 0:01:00]} (32... Qxf4 $2 33. Qd8#) (32... Rxf4 $142 33. Qd8+ Kf7 34. Rd7+ Kg6 35. Qg8+ Kf5 36. Qh7+ Kg4 37. Qg6+ Qg5 38. Qxe6+ Rf5 39. Qe4+ Kh5 40. Qe8+ Kg4 41. Qe4+ Kh5 42. Qe8+ Qg6 43. Rh7+ Kg5 44. Qd8+ Rf6 45. Qd2+ Rf4 46. Qg2+ Rg4 47. Qd2+ Kf5 48. Qd5+ Kf6 49. Qd8+ Ke5 50. Qc7+ Bd6 51. Re7+ Kf4 52. Rf7+ Ke4 53. Qc4+ Ke5 54. Qc3+ Rd4 55. Qe3+ Re4 56. Qc3+ Kd5) 33. Ng6 {[%emt 0:00:30]} Qg3 $40 {[%emt 0:00:30][%mdl 128] Black is out for blood.} (33... Qxb2 $2 34. Qe4 (34. Nxh4 $2 {too greedy.} Qf6 $19) 34... Qxa2 35. Qe5 $18) 34. Qxg3 {[%emt 0:00:00]} hxg3 {[%emt 0:00:00]} 35. Kg2 {[%cal Od1e1]} ({Don't blunder} 35. Rd6 $2 Rh7+ 36. Kg2 Bc7 37. Rxe6+ Kf7 $19) 35... Bc7 {[%emt 0:01:00] White must now prevent ...Rf2+.} 36. Rd2 {[%emt 0:00:00] Prevents Rf2+.} (36. Rf1) 36... Rh7 {[%emt 0:00:00] Threatens to win with ...Rh2+. Black is clearly winning.} 37. Kf3 {[%emt 0:00:00]} Rh6 {[%emt 0:01:00]} 38. Nf4 {[%emt 0:00:00]} Rf6 {[%emt 0:00:00] Weighted Error Value: White=0.75/Black=0.28 (precise)} 0-1